fUST/lending_fUST_20240713
["ID","MTS","AMOUNT","RATE_DAILY","PERIOD"]
[331905816,1720825854126,-3000.0,0.0002677,2]
[331905817,1720825854135,-3000.0,0.0002678,2]
[331905818,1720825854145,-659.31259948,0.00026782,2]
[331905819,1720825854158,-3000.0,0.0002679,2]
[331905820,1720825854167,-530.40352659,0.00026797,2]
[331905821,1720825854177,-3000.0,0.000268,2]
[331905822,1720825854187,-150.79426912,0.00026802,2]
[331905823,1720825854196,-3000.0,0.0002681,2]
[331905824,1720825854206,-3000.0,0.0002682,2]
[331905825,1720825854216,-151.0,0.0002682,7]
[331905826,1720825854228,-229.265118,0.0002682,7]
[331905827,1720825854240,-3000.0,0.0002683,2]
[331905828,1720825854249,-3000.0,0.0002684,2]
[331905829,1720825854259,-153.79107762,0.00026841,2]
[331905830,1720825854269,-1674.7,0.00026848,2]
[331905831,1720825854282,-1674.7,0.00026848,2]
[331905832,1720825854292,-1674.7,0.00026848,2]
[331905833,1720825854302,-1674.7,0.00026848,2]
[331905834,1720825854314,-1674.9006073,0.00026848,2]
[331905835,1720825854325,-500.0,0.00026849,2]
[331905836,1720825854335,-500.0,0.00026849,2]
[331905837,1720825854344,-500.0,0.00026849,2]
[331905838,1720825854353,-208.75112797,0.00026849,2]
[331905839,1720825854363,-531.76915667,0.00026849,2]
[331905840,1720825854372,-500.0,0.00026849,2]
[331905841,1720825854382,-500.0,0.00026849,2]
[331905842,1720825854391,-508.3,0.00026849,2]
[331905843,1720825854400,-843.63,0.00026849,2]
[331905844,1720825854409,-500.0,0.00026849,2]
[331905845,1720825854419,-500.0,0.00026849,2]
[331905846,1720825854428,-500.0,0.00026849,2]
[331905847,1720825854438,-500.0,0.00026849,2]
[331905848,1720825854448,-500.0,0.00026849,2]
[331905849,1720825854458,-500.0,0.00026849,2]
[331905850,1720825854467,-500.0,0.00026849,2]
[331905851,1720825854476,-500.0,0.00026849,2]
[331905852,1720825854486,-151.0,0.00026849,7]
[331905853,1720825854495,-151.0,0.00026849,7]
[331905854,1720825854504,-613.86644046,0.00026849,2]
[331905855,1720825854514,-500.0,0.00026849,2]
[331905856,1720825854523,-602.06,0.00026849,2]
[331905857,1720825854533,-500.0,0.00026849,2]
[331905858,1720825854542,-500.0,0.00026849,2]
[331905859,1720825854552,-812.22,0.00026849,2]
[331905860,1720825854561,-500.0,0.00026849,2]
[331905861,1720825854570,-1109.4,0.00026849,2]
[331905862,1720825854579,-500.0,0.00026849,2]
[331905863,1720825854588,-647.99534177,0.00026849,2]
[331905864,1720825854599,-500.0,0.00026849,2]
[331905865,1720825854608,-500.0,0.00026849,2]
[331905866,1720825854617,-500.0,0.00026849,2]
[331905867,1720825854631,-500.0,0.00026849,2]
[331905868,1720825854643,-500.0,0.00026849,2]
[331905869,1720825854653,-162.39306937,0.00026849,2]
[331905870,1720825854663,-500.0,0.00026849,2]
[331905871,1720825854674,-1888.33,0.00026849,2]
[331905872,1720825854683,-500.0,0.00026849,2]
[331905873,1720825854694,-601.67,0.00026849,2]
[331905874,1720825854704,-500.0,0.00026849,2]
[331905875,1720825854715,-500.0,0.00026849,2]
[331905876,1720825854725,-500.0,0.00026849,2]
[331905877,1720825854735,-477.06665855,0.00026849,2]
[331905878,1720825854746,-500.0,0.00026849,2]
[331905879,1720825854756,-500.0,0.00026849,2]
[331905880,1720825854766,-500.0,0.00026849,2]
[331905881,1720825854776,-398.3307336,0.00026849,2]
[331905882,1720825854788,-500.0,0.00026849,2]
[331905883,1720825854798,-518.07,0.00026849,2]
[331905884,1720825854810,-500.0,0.00026849,2]
[331905885,1720825854820,-500.0,0.00026849,2]
[331905886,1720825854830,-500.0,0.00026849,2]
[331905887,1720825854839,-837.23,0.00026849,2]
[331905888,1720825854848,-807.98,0.00026849,2]
[331905889,1720825854857,-219.64071311,0.00026849,2]
[331905890,1720825854867,-500.0,0.00026849,2]
[331905891,1720825854876,-500.0,0.00026849,2]
[331905892,1720825854886,-520.79,0.00026849,2]
[331905893,1720825854896,-297.38530946,0.00026849,2]
[331905894,1720825854907,-2287.63,0.00026849,2]
[331905895,1720825854918,-326.67483449,0.00026849,2]
[331905896,1720825854928,-500.0,0.00026849,2]
[331905897,1720825854939,-28518.43,0.00026849,2]
[331905898,1720825854950,-500.0,0.00026849,2]
[331905899,1720825854959,-500.0,0.00026849,2]
[331905900,1720825854969,-500.0,0.00026849,2]
[331905901,1720825854979,-500.0,0.00026849,2]
[331905902,1720825854988,-500.0,0.00026849,2]
[331905903,1720825854998,-500.0,0.00026849,2]
[331905904,1720825855009,-500.0,0.00026849,2]
[331905905,1720825855020,-3804.15,0.00026849,2]
[331905906,1720825855031,-500.0,0.00026849,2]
[331905907,1720825855042,-500.0,0.00026849,2]
[331905908,1720825855052,-500.0,0.00026849,2]
[331905909,1720825855062,-500.0,0.00026849,2]
[331905910,1720825855071,-500.0,0.00026849,2]
[331905911,1720825855081,-500.0,0.00026849,2]
[331905912,1720825855091,-3000.0,0.0002685,2]
[331905913,1720825855100,-659.31259948,0.00026856,2]
[331905914,1720825855110,-3000.0,0.0002686,2]
[331905915,1720825855120,-3000.0,0.0002687,2]
[331905916,1720825855130,-205.53042343,0.00026874,2]
[331905917,1720825855139,-151.0,0.00026879,2]
[331905918,1720825855149,-151.0,0.00026879,2]
[331905919,1720825855158,-3000.0,0.0002688,2]
[331905920,1720825855168,-3000.0,0.0002689,2]
[331905921,1720825855177,-4175.586431,0.000269,2]
[331905922,1720825855187,-152.71751146,0.00026908,2]
[331905923,1720825855196,-154.59445059,0.00026921,2]
[331905924,1720825855205,-150.0,0.00026944,2]
[331905925,1720825855215,-153.29155785,0.0002701,2]
[331905926,1720825855226,-611.0,0.000271,2]
[331905927,1720825855237,-205.53042343,0.00027115,2]
[331905928,1720825855248,-500.0,0.00027123,2]
[331905929,1720825855257,-500.0,0.00027123,2]
[331905930,1720825855266,-500.0,0.00027123,2]
[331905931,1720825855279,-151.0,0.00027123,2]
[331905932,1720825855291,-500.0,0.00027123,2]
[331905933,1720825855300,-500.0,0.00027123,2]
[331905934,1720825855309,-508.3,0.00027123,2]
[331905935,1720825855320,-843.63,0.00027123,2]
[331905936,1720825855329,-500.0,0.00027123,2]
[331905937,1720825855339,-500.0,0.00027123,2]
[331905938,1720825855348,-211.03291629,0.00027123,2]
[331905939,1720825855358,-500.0,0.00027123,2]
[331905940,1720825855367,-500.0,0.00027123,2]
[331905941,1720825855376,-500.0,0.00027123,2]
[331905942,1720825855385,-500.0,0.00027123,2]
[331905943,1720825855394,-500.0,0.00027123,2]
[331905944,1720825855404,-500.0,0.00027123,2]
[331905945,1720825855543,-602.06,0.00027123,2]
[331905946,1720825855554,-500.0,0.00027123,2]
[331905947,1720825855565,-165.32166047,0.00027123,2]
[331905948,1720825855574,-812.22,0.00027123,2]
[331905949,1720825855583,-258.88605255,0.00027123,2]
[331905950,1720825855593,-1109.4,0.00027123,2]
[331905951,1720825855603,-500.0,0.00027123,2]
[331905952,1720825855614,-591.56678218,0.00027123,2]
[331905953,1720825855627,-500.0,0.00027123,2]
[331905954,1720825855638,-500.0,0.00027123,2]
[331905955,1720825855648,-500.0,0.00027123,2]
[331905956,1720825855658,-500.0,0.00027123,2]
[331905957,1720825855670,-500.0,0.00027123,2]
[331905958,1720825855679,-1888.33,0.00027123,2]
[331905959,1720825855688,-500.0,0.00027123,2]
[331905960,1720825855699,-601.67,0.00027123,2]
[331905961,1720825855709,-500.0,0.00027123,2]
[331905962,1720825855719,-500.0,0.00027123,2]
[331905963,1720825855728,-500.0,0.00027123,2]
[331905964,1720825855738,-500.0,0.00027123,2]
[331905965,1720825855747,-500.0,0.00027123,2]
[331905966,1720825855757,-273.29107678,0.00027123,2]
[331905967,1720825855767,-500.0,0.00027123,2]
[331905968,1720825855777,-518.07,0.00027123,2]
[331905969,1720825855788,-500.0,0.00027123,2]
[331905970,1720825855798,-500.0,0.00027123,2]
[331905971,1720825855807,-500.0,0.00027123,2]
[331905972,1720825855824,-837.23,0.00027123,2]
[331905973,1720825855838,-151.0,0.00027123,7]
[331905974,1720825855850,-807.98,0.00027123,2]
[331905975,1720825855863,-500.0,0.00027123,2]
[331905976,1720825855875,-500.0,0.00027123,2]
[331905977,1720825855886,-520.79,0.00027123,2]
[331905978,1720825855898,-2287.63,0.00027123,2]
[331905979,1720825855909,-454.58967797,0.00027123,2]
[331905980,1720825855923,-28518.43,0.00027123,2]
[331905981,1720825855936,-460.63891358,0.00027123,2]
[331905982,1720825855948,-323.05479282,0.00027123,2]
[331905983,1720825855958,-500.0,0.00027123,2]
[331905984,1720825855968,-500.0,0.00027123,2]
[331905985,1720825855979,-500.0,0.00027123,2]
[331905986,1720825855992,-562.51004883,0.00027123,2]
[331905987,1720825856003,-500.0,0.00027123,2]
[331905988,1720825856013,-3804.15,0.00027123,2]
[331905989,1720825856023,-500.0,0.00027123,2]
[331905990,1720825856034,-500.0,0.00027123,2]
[331905991,1720825856045,-500.0,0.00027123,2]
[331905992,1720825856057,-500.0,0.00027123,2]
[331905993,1720825856068,-261.815616,0.00027123,7]
[331905994,1720825856078,-500.0,0.00027123,2]
[331905995,1720825856088,-261.815616,0.00027123,7]
[331905996,1720825856098,-500.0,0.00027123,2]
[331905997,1720825856109,-168.9575777,0.00027123,2]
[331905998,1720825856119,-150.79426912,0.00027125,2]
[331905999,1720825856131,-151.0,0.00027146,2]
[331906000,1720825856142,-151.0,0.00027146,2]
[331906001,1720825856154,-154.59445059,0.00027176,2]
[331906002,1720825856164,-5182.6212183,0.00027191,2]
[331906003,1720825856174,-345.979943,0.00027195,2]
[331906004,1720825856184,-530.40352659,0.00027212,2]
[331906005,1720825856194,-151.0,0.00027234,2]
[331906006,1720825856205,-359.00222009,0.00027271,2]
[331906007,1720825856215,-154.59445059,0.00027286,2]
[331906008,1720825856224,-374.0,0.000273,2]
[331906009,1720825856234,-500.0,0.00027397,2]
[331906010,1720825856244,-500.0,0.00027397,2]
[331906011,1720825856253,-500.0,0.00027397,2]
[331906012,1720825856263,-151.0,0.00027397,2]
[331906013,1720825856273,-506.35,0.00027397,2]
[331906014,1720825856284,-506.35,0.00027397,2]
[331906015,1720825856294,-506.35,0.00027397,2]
[331906016,1720825856304,-506.35,0.00027397,2]
[331906017,1720825856314,-506.35,0.00027397,2]
[331906018,1720825856324,-506.35,0.00027397,2]
[331906019,1720825856335,-506.35,0.00027397,2]
[331906020,1720825856346,-500.0,0.00027397,2]
[331906021,1720825856356,-506.35,0.00027397,2]
[331906022,1720825856365,-506.35,0.00027397,2]
[331906023,1720825856382,-506.35,0.00027397,2]
[331906024,1720825856391,-506.35,0.00027397,2]
[331906025,1720825856402,-500.0,0.00027397,2]
[331906026,1720825856412,-508.3,0.00027397,2]
[331906027,1720825856423,-843.63,0.00027397,2]
[331906028,1720825856432,-481.41188564,0.00027397,2]
[331906029,1720825856443,-500.0,0.00027397,2]
[331906030,1720825856452,-500.0,0.00027397,2]
[331906031,1720825856462,-500.0,0.00027397,2]
[331906032,1720825856471,-500.0,0.00027397,2]
[331906033,1720825856481,-500.0,0.00027397,2]
[331906034,1720825856490,-500.0,0.00027397,2]
[331906035,1720825856502,-500.0,0.00027397,2]
[331906036,1720825856513,-602.06,0.00027397,2]
[331906037,1720825856522,-246.0041287,0.00027397,2]
[331906038,1720825856532,-500.0,0.00027397,2]
[331906039,1720825856542,-500.0,0.00027397,2]
[331906040,1720825856551,-500.0,0.00027397,2]
[331906041,1720825856560,-500.0,0.00027397,2]
[331906042,1720825856570,-500.0,0.00027397,2]
[331906043,1720825856579,-500.0,0.00027397,2]
[331906044,1720825856589,-500.0,0.00027397,2]
[331906045,1720825856598,-500.0,0.00027397,2]
[331906046,1720825856608,-500.0,0.00027397,2]
[331906047,1720825856617,-500.0,0.00027397,2]
[331906048,1720825856630,-500.0,0.00027397,2]
[331906049,1720825856639,-500.0,0.00027397,2]
[331906050,1720825856649,-500.0,0.00027397,2]
[331906051,1720825856660,-500.0,0.00027397,2]
[331906052,1720825856671,-500.0,0.00027397,2]
[331906053,1720825856681,-500.0,0.00027397,2]
[331906054,1720825856690,-307.29108494,0.00027397,2]
[331906055,1720825856848,-312.2633,0.00024657,2]
[331906056,1720825857151,-3.87366242,0.00024657,2]
[331906057,1720825857163,-183.86303758,0.00024657,2]
[331906058,1720825857172,-500.0,0.00024657,2]
[331906059,1720825857182,-500.0,0.00024657,2]
[331906060,1720825857192,-500.0,0.00024657,2]
[331906061,1720825857201,-500.0,0.00024931,2]
[331906062,1720825857211,-500.0,0.00024931,2]
[331906063,1720825857221,-500.0,0.00024931,2]
[331906064,1720825857231,-326.4,0.00024931,2]
[331906065,1720825857241,-350.07,0.00025205,2]
[331906066,1720825857250,-500.0,0.00025205,2]
[331906067,1720825857260,-500.0,0.00025205,2]
[331906068,1720825857269,-500.0,0.00025479,2]
[331906069,1720825857278,-500.0,0.00025479,2]
[331906070,1720825857289,-500.0,0.00025753,2]
[331906071,1720825857299,-500.0,0.00025753,2]
[331906072,1720825857310,-500.0,0.00026027,2]
[331906073,1720825857319,-500.0,0.00026027,2]
[331906074,1720825857328,-500.0,0.00026027,2]
[331906075,1720825857337,-500.0,0.00026301,2]
[331906076,1720825857346,-500.0,0.00026301,2]
[331906077,1720825857357,-500.0,0.00026301,2]
[331906078,1720825857366,-500.0,0.00026575,2]
[331906079,1720825857376,-500.0,0.00026575,2]
[331906080,1720825857385,-500.0,0.00026849,2]
[331906081,1720825857395,-500.0,0.00026849,2]
[331906082,1720825857404,-258.2446713,0.00027123,2]
[331906083,1720825857414,-500.0,0.00027123,2]
[331906084,1720825857423,-192.70891506,0.00027397,2]
[331906085,1720825857433,-500.0,0.00027397,2]
[331906086,1720825857443,-500.0,0.00027397,2]
[331906087,1720825857453,-500.0,0.00027397,2]
[331906088,1720825857463,-500.0,0.00027397,2]
[331906089,1720825857472,-500.0,0.00027397,2]
[331906090,1720825857481,-500.0,0.00027397,2]
[331906091,1720825857491,-500.0,0.00027397,2]
[331906092,1720825857500,-500.0,0.00027397,2]
[331906093,1720825857509,-500.0,0.00027397,2]
[331906094,1720825857518,-500.0,0.00027397,2]
[331906095,1720825857527,-500.0,0.00027397,2]
[331906096,1720825857538,-500.0,0.00027397,2]
[331906097,1720825857548,-500.0,0.00027397,2]
[331906098,1720825857557,-500.0,0.00027397,2]
[331906099,1720825857567,-500.0,0.00027397,2]
[331906100,1720825857576,-500.0,0.00027397,2]
[331906101,1720825857585,-500.0,0.00027397,2]
[331906102,1720825857594,-500.0,0.00027397,2]
[331906103,1720825857604,-500.0,0.00027397,2]
[331906104,1720825857613,-500.0,0.00027397,2]
[331906105,1720825857624,-500.0,0.00027397,2]
[331906106,1720825857634,-221.51182064,0.00027397,2]
[331906107,1720825857644,-500.0,0.00027397,2]
[331906108,1720825857653,-500.0,0.00027397,2]
[331906109,1720825857663,-500.0,0.00027397,2]
[331906110,1720825857674,-500.0,0.00027397,2]
[331906111,1720825857684,-500.0,0.00027397,2]
[331906112,1720825857693,-500.0,0.00027397,2]
[331906113,1720825857704,-812.22,0.00027397,2]
[331906114,1720825857714,-1136.21301279,0.00027397,2]
[331906115,1720825857723,-1136.21301279,0.00027397,2]
[331906116,1720825857733,-1136.21301279,0.00027397,2]
[331906117,1720825857743,-1136.21301279,0.00027397,2]
[331906118,1720825857752,-1136.21301279,0.00027397,2]
[331906119,1720825857762,-1136.21301279,0.00027397,2]
[331906120,1720825857772,-1136.21301279,0.00027397,2]
[331906121,1720825857781,-1136.21301279,0.00027397,2]
[331906122,1720825857792,-1136.21301279,0.00027397,2]
[331906123,1720825857801,-1136.21301279,0.00027397,2]
[331906124,1720825857810,-1136.21301279,0.00027397,2]
[331906125,1720825857819,-1136.21301279,0.00027397,2]
[331906126,1720825857829,-1136.21301279,0.00027397,2]
[331906127,1720825857839,-1136.21301279,0.00027397,2]
[331906128,1720825857848,-1136.21301279,0.00027397,2]
[331906129,1720825857859,-1136.21301279,0.00027397,2]
[331906130,1720825857868,-1136.21301279,0.00027397,2]
[331906131,1720825857878,-1136.21301279,0.00027397,2]
[331906132,1720825857888,-1136.21301279,0.00027397,2]
[331906133,1720825857897,-1136.21301279,0.00027397,2]
[331906134,1720825857907,-1136.21301279,0.00027397,2]
[331906135,1720825857916,-1136.21301279,0.00027397,2]
[331906136,1720825857926,-1136.21301279,0.00027397,2]
[331906137,1720825857938,-1136.21301279,0.00027397,2]
[331906138,1720825857948,-1136.21301279,0.00027397,2]
[331906139,1720825857958,-1136.21301279,0.00027397,2]
[331906140,1720825857967,-1136.21301279,0.00027397,2]
[331906141,1720825857976,-1136.21301279,0.00027397,2]
[331906142,1720825857986,-1136.21301279,0.00027397,2]
[331906143,1720825857996,-1136.21301279,0.00027397,2]
[331906144,1720825858005,-1136.21301279,0.00027397,2]
[331906145,1720825858098,-1136.21301279,0.00027397,2]
[331906146,1720825858109,-1136.21301279,0.00027397,2]
[331906147,1720825858119,-1136.21301279,0.00027397,2]
[331906148,1720825858129,-1136.21301279,0.00027397,2]
[331906149,1720825858139,-1136.21301279,0.00027397,2]
[331906150,1720825858148,-1136.21301279,0.00027397,2]
[331906151,1720825858158,-1136.21301279,0.00027397,2]
[331906152,1720825858167,-1136.21301279,0.00027397,2]
[331906153,1720825858175,-1109.4,0.00027397,2]
[331906154,1720825858184,-500.0,0.00027397,2]
[331906155,1720825858194,-1176.79204898,0.00027397,2]
[331906156,1720825858203,-1176.79204898,0.00027397,2]
[331906157,1720825858212,-1176.79204898,0.00027397,2]
[331906158,1720825858221,-1176.79204898,0.00027397,2]
[331906159,1720825858230,-1176.79204898,0.00027397,2]
[331906160,1720825858240,-1176.79204898,0.00027397,2]
[331906161,1720825858249,-1176.79204898,0.00027397,2]
[331906162,1720825858258,-500.0,0.00027397,2]
[331906163,1720825858267,-500.0,0.00027397,2]
[331906164,1720825858276,-299.1329887,0.00027397,2]
[331906165,1720825858287,-500.0,0.00027397,2]
[331906166,1720825858297,-500.0,0.00027397,2]
[331906167,1720825858306,-1888.33,0.00027397,2]
[331906168,1720825858316,-500.0,0.00027397,2]
[331906169,1720825858326,-601.67,0.00027397,2]
[331906170,1720825858335,-500.0,0.00027397,2]
[331906171,1720825858344,-500.0,0.00027397,2]
[331906172,1720825858353,-283.96091767,0.00027397,2]
[331906173,1720825858363,-500.0,0.00027397,2]
[331906174,1720825858373,-500.0,0.00027397,2]
[331906175,1720825858383,-500.0,0.00027397,2]
[331906176,1720825858392,-518.07,0.00027397,2]
[331906177,1720825858401,-500.0,0.00027397,16]
[331906178,1720825858411,-500.0,0.00027397,16]
[331906179,1720825858420,-500.0,0.00027397,2]
[331906180,1720825858430,-500.0,0.00027397,16]
[331906181,1720825858440,-500.0,0.00027397,16]
[331906182,1720825858451,-500.0,0.00027397,2]
[331906183,1720825858461,-571.40198138,0.00027397,16]
[331906184,1720825858470,-500.0,0.00027397,2]
[331906185,1720825858479,-837.23,0.00027397,2]
[331906186,1720825858489,-807.98,0.00027397,2]
[331906187,1720825858498,-500.0,0.00027397,2]
[331906188,1720825858507,-500.0,0.00027397,2]
[331906189,1720825858516,-520.79,0.00027397,2]
[331906190,1720825858526,-2287.63,0.00027397,2]
[331906191,1720825858535,-28518.43,0.00027397,2]
[331906192,1720825858545,-451.84832719,0.00027397,2]
[331906193,1720825858554,-500.0,0.00027397,2]
[331906194,1720825858565,-500.0,0.00027397,2]
[331906195,1720825858574,-559.88501925,0.00027397,2]
[331906196,1720825858584,-3804.15,0.00027397,2]
[331906197,1720825858594,-500.0,0.00027397,2]
[331906198,1720825858603,-500.0,0.00027397,2]
[331906199,1720825858613,-500.0,0.00027397,2]
[331906200,1720825858625,-424.79681252,0.00027397,2]
[331906201,1720825858634,-261.815616,0.00027397,7]
[331906202,1720825858644,-500.0,0.00027397,2]
[331906203,1720825858654,-261.815616,0.00027397,7]
[331906204,1720825858664,-500.0,0.00027397,2]
[331906205,1720825858674,-500.0,0.00027397,2]
[331906206,1720825858683,-179.463368,0.00027397,120]
[331906207,1720825858692,-151.0,0.00027399,7]
[331906208,1720825858704,-336.78649297,0.000274,2]
[331906209,1720825858713,-153.29155785,0.00027408,2]
[331906210,1720825858722,-151.0,0.00027412,2]
[331906211,1720825858732,-151.0,0.00027412,2]
[331906212,1720825858741,-157.95591486,0.00027431,2]
[331906213,1720825858750,-153.0,0.00027451,2]
[331906214,1720825858760,-153.0,0.00027451,2]
[331906215,1720825858769,-153.0,0.00027451,2]
[331906216,1720825858778,-153.0,0.00027451,2]
[331906217,1720825858788,-153.0,0.00027451,2]
[331906218,1720825858797,-153.0,0.00027451,2]
[331906219,1720825858806,-153.0,0.00027451,2]
[331906220,1720825858816,-153.0,0.00027451,2]
[331906221,1720825858826,-153.0,0.00027451,2]
[331906222,1720825858835,-153.0,0.00027451,2]
[331906223,1720825858845,-153.0,0.00027451,2]
[331906224,1720825858855,-153.0,0.00027451,2]
[331906225,1720825858865,-153.0,0.00027451,2]
[331906226,1720825858874,-153.0,0.00027451,2]
[331906227,1720825858885,-217.3362472,0.00027451,2]
[331906228,1720825858894,-153.0,0.00027451,2]
[331906229,1720825858903,-153.0,0.00027451,2]
[331906230,1720825858913,-153.0,0.00027451,2]
[331906231,1720825858923,-153.0,0.00027451,2]
[331906232,1720825858933,-153.0,0.00027451,2]
[331906233,1720825858943,-153.0,0.00027451,2]
[331906234,1720825858953,-153.0,0.00027451,2]
[331906235,1720825858962,-153.0,0.00027451,2]
[331906236,1720825858972,-153.0,0.00027451,2]
[331906237,1720825858981,-153.0,0.00027451,2]
[331906238,1720825858991,-153.0,0.00027451,2]
[331906239,1720825859000,-153.0,0.00027451,2]
[331906240,1720825859010,-153.0,0.00027451,2]
[331906241,1720825859019,-153.0,0.00027451,2]
[331906242,1720825859029,-200.0,0.00027504,2]
[331906243,1720825859039,-154.59445059,0.00027528,2]
[331906244,1720825859049,-157.95591486,0.00027641,2]
[331906245,1720825859060,-500.0,0.00027671,2]
[331906246,1720825859069,-500.0,0.00027671,2]
[331906247,1720825859079,-500.0,0.00027671,2]
[331906248,1720825859089,-506.35,0.00027671,2]
[331906249,1720825859099,-500.0,0.00027671,2]
[331906250,1720825859109,-508.3,0.00027671,2]
[331906251,1720825859119,-151.0,0.00027671,2]
[331906252,1720825859128,-843.63,0.00027671,2]
[331906253,1720825859138,-206.71041229,0.00027671,2]
[331906254,1720825859147,-500.0,0.00027671,2]
[331906255,1720825859157,-276.94979069,0.00027671,2]
[331906256,1720825859167,-500.0,0.00027671,2]
[331906257,1720825859176,-500.0,0.00027671,2]
[331906258,1720825859186,-240.83268864,0.00027671,2]
[331906259,1720825859196,-500.0,0.00027671,2]
[331906260,1720825859205,-602.06,0.00027671,2]
[331906261,1720825859215,-812.22,0.00027671,2]
[331906262,1720825859225,-1109.4,0.00027671,2]
[331906263,1720825859235,-500.0,0.00027671,2]
[331906264,1720825859244,-500.0,0.00027671,2]
[331906265,1720825859254,-401.35230351,0.00027671,2]
[331906266,1720825859265,-500.0,0.00027671,2]
[331906267,1720825859275,-500.0,0.00027671,2]
[331906268,1720825859286,-1888.33,0.00027671,2]
[331906269,1720825859295,-500.0,0.00027671,2]
[331906270,1720825859306,-601.67,0.00027671,2]
[331906271,1720825859316,-500.0,0.00027671,2]
[331906272,1720825859326,-500.0,0.00027671,2]
[331906273,1720825859335,-500.0,0.00027671,2]
[331906274,1720825859345,-150.7174982,0.00027671,2]
[331906275,1720825859356,-500.0,0.00027671,2]
[331906276,1720825859366,-518.07,0.00027671,2]
[331906277,1720825859376,-500.0,0.00027671,2]
[331906278,1720825859386,-500.0,0.00027671,2]
[331906279,1720825859396,-500.0,0.00027671,2]
[331906280,1720825859406,-837.23,0.00027671,2]
[331906281,1720825859416,-807.98,0.00027671,2]
[331906282,1720825859426,-500.0,0.00027671,2]
[331906283,1720825859436,-209.44587469,0.00027671,2]
[331906284,1720825859446,-520.79,0.00027671,2]
[331906285,1720825859457,-2287.63,0.00027671,2]
[331906286,1720825859467,-10787.96213141,0.00027671,2]
[331906301,1720826640095,1491.05500079,0.00016255,2]
[331906303,1720826688812,662.1748885,0.00016255,2]
[331906306,1720826713497,154.76012181,0.00016255,60]
[331906310,1720826741874,200.88652735,0.00016255,2]
[331906312,1720826826101,-150.0,0.000189,2]
[331906313,1720826826122,-212.89190535,0.00019703,2]
[331906314,1720826834129,-330.17656722,0.00019703,2]
[331906315,1720826834152,-243.25564885,0.00019703,2]
[331906324,1720826962078,-413.03103633,0.00018899,2]
[331906325,1720826962102,-2132.45671248,0.00019164,2]
[331906326,1720826962130,-1664.11672478,0.00019703,2]
[331906328,1720826971375,253.33798423,0.00019165,2]
[331906329,1720826973098,-65.58529458,0.00019165,2]
[331906330,1720826973120,-345.853888,0.00021096,2]
[331906331,1720826973140,-199.943201,0.00022501,2]
[331906369,1720827031964,-1350.53628133,0.00022942,2]
[331906371,1720827031974,-283.34784501,0.00022943,2]
[331906373,1720827031983,-276.5555316,0.00023164,2]
[331906375,1720827031993,-700.1088951,0.00023296,2]
[331906377,1720827032005,-2423.18753964,0.00023296,2]
[331906380,1720827032017,-3848.01,0.00023296,2]
[331906382,1720827032029,-4780.66768666,0.00023296,2]
[331906384,1720827032039,-195.31716393,0.00023453,2]
[331906386,1720827032048,-263.29031622,0.00023453,2]
[331906388,1720827032058,-193.69798923,0.00023453,2]
[331906390,1720827032067,-935.74725838,0.00023453,2]
[331906392,1720827032076,-313.07602181,0.00023453,2]
[331906394,1720827032085,-348.36389326,0.00023453,2]
[331906396,1720827032095,-154.62117811,0.00023455,2]